bitfinex/quotes_SOLUSD_20250625
["timestamp","ask_amount","ask_price","bid_price","bid_amount"]
[1750871400659,6.67458171,143.53,143.5,6.96864111]
[1750871401064,6.67458171,143.52,143.5,6.96864111]
[1750871401571,6.67458171,143.54,143.5,24.39024389]
[1750871401866,6.67458171,143.55,143.5,31.0648256]
[1750871403062,6.67458171,143.54,143.5,31.0648256]
[1750871403359,148.6,143.56,143.5,31.0648256]
[1750871403551,6.67458171,143.55,143.5,31.0648256]
[1750871403857,148.6,143.56,143.51,6.67458171]
[1750871404061,155.27458171,143.56,143.51,6.67458171]
[1750871404861,6.67458171,143.55,143.52,6.96767001]
[1750871405066,155.27458171,143.56,143.52,13.64225172]
[1750871406868,155.27458171,143.56,143.52,6.96767001]
[1750871408575,148.6,143.56,143.52,6.96767001]
[1750871408741,155.27458171,143.56,143.52,6.96767001]
[1750871409487,148.6,143.56,143.52,6.96767001]
[1750871409644,148.6,143.56,143.54,6.67458171]
[1750871409979,8.93198171,143.59,143.54,6.67458171]
[1750871410979,6.67458171,143.58,143.54,6.67458171]
[1750871411545,6.67458171,143.58,143.55,6.96621386]
[1750871413945,6.67458171,143.57,143.54,6.96669917]
[1750871416381,6.67458171,143.58,143.54,6.96669917]
[1750871417082,6.67458171,143.58,143.54,6.67458171]
[1750871417781,6.67458171,143.58,143.53,6.67458171]
[1750871419063,6.67458171,143.58,143.54,6.96669917]
[1750871419267,18.64964886,143.58,143.52,6.96767001]
[1750871419476,6.67458171,143.55,143.52,6.96767001]
[1750871419876,5.17793706,143.57,143.52,6.96767001]
[1750871420181,6.67458171,143.55,143.52,6.96767001]
[1750871420564,6.67458171,143.53,143.46,10.9216]
[1750871420761,6.67458171,143.5,143.46,2.2767]
[1750871421363,6.67458171,143.5,143.46,24.39692208]
[1750871422679,6.67458171,143.5,143.46,31.07150379]
[1750871423579,6.67458171,143.51,143.47,6.67458171]
[1750871423783,6.67458171,143.52,143.47,6.67458171]
[1750871423986,6.67458171,143.53,143.49,6.67458171]
[1750871424283,6.67458171,143.53,143.48,6.67458171]
[1750871424486,6.67458171,143.53,143.49,6.96912676]
[1750871427393,148.6,143.56,143.51,6.67458171]
[1750871427569,155.27458171,143.56,143.52,6.67458171]
[1750871428466,148.6,143.56,143.52,6.67458171]
[1750871428674,148.6,143.56,143.53,6.67458171]
[1750871428982,155.27458171,143.56,143.52,6.67458171]
[1750871429694,148.6,143.56,143.53,6.96718456]
[1750871429878,155.27458171,143.56,143.53,6.96718456]
[1750871430182,148.6,143.56,143.53,13.64176627]
[1750871431280,148.6,143.56,143.53,6.96718456]
[1750871432289,148.6,143.56,143.53,6.67458171]
[1750871433406,148.6,143.56,143.51,17.4203053]
[1750871433407,2.2249,143.62,143.55,6.67458171]
[1750871433570,155.27458171,143.64,143.59,6.67458171]
[1750871433883,148.6,143.63,143.61,6.67458171]
[1750871434295,148.6,143.63,143.61,13.6374717]
[1750871434493,148.6,143.63,143.61,6.96288999]
[1750871434696,155.27458171,143.63,143.6,6.96359236]
[1750871434874,6.67458171,143.62,143.6,6.96359236]
[1750871435074,155.27458171,143.63,143.6,6.96359236]
[1750871435808,6.67458171,143.62,143.6,6.96359236]
[1750871436181,6.67458171,143.61,143.57,6.96524343]
[1750871436392,6.67458171,143.6,143.57,6.96524343]
[1750871436779,18.64964886,143.59,143.57,6.96524343]
[1750871437101,6.67458171,143.58,143.55,6.96621386]
[1750871437288,6.67458171,143.56,143.55,6.96621386]
[1750871437618,6.67458171,143.57,143.55,6.96621386]
[1750871438277,6.67458171,143.57,143.53,6.96718456]
[1750871440400,148.6,143.59,143.55,6.67458171]
[1750871440606,148.6,143.59,143.56,6.67458171]
[1750871440805,12.93458171,143.62,143.57,6.67458171]
[1750871440999,6.67458171,143.61,143.57,6.67458171]
[1750871441186,6.67458171,143.61,143.56,26.0]
[1750871441489,6.67458171,143.61,143.57,6.67458171]
[1750871442107,155.27458171,143.62,143.57,6.67458171]
[1750871442299,158.59207603,143.62,143.57,9.99207603]
[1750871442491,9.99207603,143.61,143.58,6.96475832]
[1750871443499,9.99207603,143.6,143.57,6.96502828]
[1750871443705,9.99207603,143.59,143.57,6.96502828]
[1750871443895,9.99207603,143.6,143.57,6.96502828]
[1750871444083,18.64964886,143.61,143.57,6.96502828]
[1750871444577,9.99207603,143.6,143.57,6.96502828]
[1750871446103,28.64172489,143.61,143.57,6.96502828]
[1750871447115,28.64172489,143.61,143.57,16.95710431]
[1750871447783,18.64964886,143.61,143.57,6.96502828]
[1750871447979,28.64172489,143.61,143.57,16.95710431]
[1750871448406,9.99207603,143.6,143.57,6.96502828]
[1750871450507,18.64964886,143.61,143.57,6.96502828]
[1750871451196,28.64172489,143.61,143.57,6.96502828]
[1750871451903,158.59207603,143.62,143.57,16.95710431]
[1750871452387,148.6,143.62,143.58,9.99207603]
[1750871452702,158.59207603,143.62,143.58,9.99207603]
[1750871453097,158.59207603,143.62,143.59,6.96427327]
[1750871454805,18.64964886,143.59,143.51,2.3424]
[1750871455107,9.99207603,143.55,143.51,24.38854434]
[1750871455494,9.99207603,143.55,143.51,34.38062037]
[1750871458108,9.99207603,143.55,143.51,6.96815552]
[1750871458310,9.99207603,143.53,143.51,6.96815552]
[1750871458614,9.99207603,143.52,143.5,6.96848359]
[1750871458790,9.99207603,143.51,143.5,6.96848359]
[1750871458993,18.64964886,143.54,143.5,6.96848359]
[1750871459196,18.64964886,143.54,143.49,6.96912676]
[1750871459506,9.99207603,143.53,143.49,16.96120279]
[1750871460290,9.99207603,143.53,143.49,6.96912676]
[1750871460490,9.99207603,143.53,143.49,16.96120279]
[1750871460699,28.64172489,143.54,143.49,16.96120279]
[1750871461288,9.99207603,143.53,143.49,16.96120279]
[1750871463395,28.64172489,143.54,143.49,16.96120279]
[1750871463591,28.64172489,143.54,143.49,34.38401971]
[1750871464090,158.59207603,143.55,143.5,9.99207603]
[1750871464415,158.59207603,143.55,143.49,24.39194368]
[1750871464416,148.6,143.55,143.52,6.66680558]
[1750871465617,148.6,143.55,143.53,6.96718456]
[1750871466318,155.26680558,143.55,143.53,6.96718456]
[1750871467633,155.26680558,143.55,143.52,6.96767001]
[1750871467914,148.6,143.55,143.52,6.96767001]
[1750871468621,155.26680558,143.55,143.52,6.96767001]
[1750871470206,148.6,143.55,143.52,6.96767001]
[1750871470908,148.6,143.55,143.52,13.63447559]
[1750871472126,148.6,143.55,143.51,24.08608288]
[1750871472710,148.6,143.55,143.52,6.66680558]
[1750871474225,148.6,143.55,143.53,6.96718456]
[1750871478827,148.6,143.55,143.53,13.63399014]
[1750871479040,148.6,143.59,143.54,6.66680558]
[1750871479327,157.41580558,143.62,143.57,6.66680558]
[1750871479535,150.749,143.62,143.58,6.66680558]
[1750871479928,6.66680558,143.61,143.57,6.66680558]
[1750871480731,6.66680558,143.61,143.58,6.96475832]
[1750871481025,150.749,143.62,143.59,6.66680558]
[1750871482027,6.66680558,143.61,143.58,6.96475832]
[1750871482328,6.66680558,143.61,143.57,13.63184086]
[1750871483531,6.66680558,143.61,143.57,6.96503528]
[1750871483532,6.66680558,143.6,143.57,6.96503528]
[1750871483835,6.66680558,143.58,143.54,6.96669917]
[1750871484018,6.66680558,143.57,143.53,6.66680558]
[1750871484828,6.66680558,143.58,143.54,6.96669917]
[1750871485333,6.66680558,143.58,143.53,6.66680558]
[1750871485526,6.66680558,143.58,143.54,6.66680558]
[1750871486829,6.66680558,143.58,143.55,6.96621386]
[1750871487139,173.91645444,143.59,143.55,6.96621386]
[1750871488632,155.26680558,143.59,143.55,6.96621386]
[1750871489331,155.26680558,143.59,143.55,13.63301944]
[1750871491139,148.6,143.59,143.56,6.66680558]
[1750871491437,6.66680558,143.59,143.55,13.63301944]
[1750871494221,6.66680558,143.6,143.56,6.66680558]
[1750871494827,25.31645444,143.61,143.56,6.66680558]
[1750871495228,157.41580558,143.62,143.58,6.66680558]
[1750871495432,148.6,143.62,143.59,6.66680558]
[1750871495733,148.6,143.62,143.6,6.66680558]
[1750871496115,148.6,143.62,143.61,6.96330339]
[1750871497043,6.66680558,143.64,143.61,6.96330339]
[1750871497249,5.16837507,143.63,143.61,13.63010897]
[1750871497439,5.1676701,143.64,143.61,6.96330339]
[1750871497742,6.66680558,143.64,143.59,6.96427327]
[1750871497939,6.66680558,143.62,143.59,6.96427327]
[1750871498419,6.66680558,143.63,143.59,13.63107885]
[1750871501464,6.66680558,143.62,143.59,6.96427327]
[1750871502328,6.66680558,143.61,143.55,8.4736]
[1750871502534,6.66680558,143.59,143.55,38.90680558]
[1750871503735,6.66680558,143.59,143.55,6.24]
[1750871503946,6.66680558,143.57,143.53,13.63399014]
[1750871504317,6.66680558,143.56,143.53,6.96718456]
[1750871505344,6.66680558,143.56,143.52,13.63447559]
[1750871506242,6.66680558,143.57,143.53,6.66680558]
[1750871507337,6.66680558,143.57,143.53,13.63378222]
[1750871507646,6.66680558,143.57,143.53,6.96697664]
[1750871508520,6.66680558,143.56,143.53,6.96697664]
[1750871509020,18.64964886,143.58,143.53,6.96697664]
[1750871509224,6.66680558,143.57,143.53,13.63378222]
[1750871510236,6.66680558,143.58,143.53,13.63378222]
[1750871510546,6.66680558,143.57,143.53,13.63378222]
[1750871512435,6.66680558,143.57,143.53,6.96697664]
[1750871514959,6.66680558,143.56,143.53,6.96697664]
[1750871515168,6.66680558,143.55,143.52,6.96745633]
[1750871515328,6.66680558,143.56,143.52,13.63426191]
[1750871515530,6.66680558,143.57,143.53,6.66680558]
[1750871515756,148.6,143.59,143.53,6.66680558]
[1750871515952,6.66680558,143.58,143.53,6.66680558]
[1750871516537,6.66680558,143.57,143.53,6.66680558]
[1750871516766,6.66680558,143.57,143.54,6.96669917]
[1750871517658,6.66680558,143.58,143.54,6.96669917]
[1750871517841,6.66680558,143.58,143.54,13.63350475]
[1750871518037,155.26680558,143.59,143.54,13.63350475]
[1750871520563,148.6,143.59,143.54,13.63350475]
[1750871520768,148.6,143.59,143.57,6.66680558]
[1750871520970,148.6,143.59,143.56,6.66680558]
[1750871521274,148.6,143.59,143.57,6.66680558]
[1750871521946,148.6,143.59,143.58,6.96475832]
[1750871522146,2.3467,143.64,143.58,13.6315639]
[1750871522361,5.17884757,143.63,143.59,6.66680558]
[1750871522659,5.17884757,143.62,143.59,6.66680558]
[1750871522865,6.66680558,143.64,143.6,6.66680558]
[1750871523053,6.66680558,143.64,143.59,6.66680558]
[1750871523247,6.66680558,143.62,143.58,6.96475832]
[1750871523846,6.66680558,143.61,143.58,6.96475832]
[1750871524254,6.66680558,143.62,143.58,13.6315639]
[1750871524763,148.6,143.63,143.59,6.66680558]
[1750871524965,148.6,143.63,143.6,6.66680558]
[1750871525264,155.26680558,143.63,143.59,6.66680558]
[1750871525769,148.6,143.63,143.59,6.66680558]
[1750871526168,148.6,143.63,143.6,6.9637883]
[1750871526374,155.26680558,143.63,143.6,6.9637883]
[1750871526662,6.66680558,143.62,143.6,6.9637883]
[1750871527039,6.66680558,143.61,143.56,32.66680558]
[1750871527240,6.66680558,143.6,143.56,6.96550615]
[1750871527434,7.50466613,143.62,143.56,6.96550615]
[1750871527435,6.66680558,143.59,143.56,6.96550615]
[1750871529657,6.66680558,143.6,143.56,13.63231173]
[1750871532356,2.3299,143.62,143.56,13.63231173]
[1750871532554,6.66680558,143.6,143.56,13.63231173]
[1750871532966,6.66680558,143.6,143.56,31.04663326]
[1750871533678,6.66680558,143.61,143.57,6.66680558]
[1750871533981,20.97954886,143.62,143.58,13.6315639]
[1750871534169,27.64635444,143.62,143.58,13.6315639]
[1750871534369,148.6,143.63,143.58,13.6315639]
[1750871534676,6.66680558,143.62,143.58,13.6315639]
[1750871535576,148.6,143.63,143.59,6.66680558]
[1750871535976,155.26680558,143.63,143.6,6.9637883]
[1750871538453,6.66680558,143.62,143.6,6.9637883]
[1750871539783,6.66680558,143.62,143.59,6.96427327]
[1750871541274,6.66680558,143.62,143.58,13.6315639]
[1750871541963,148.6,143.63,143.58,13.6315639]
[1750871542271,148.6,143.63,143.59,6.66680558]
[1750871542471,148.6,143.63,143.6,6.66680558]
[1750871543054,148.6,143.63,143.61,6.66680558]
[1750871543356,148.6,143.63,143.62,6.96281854]
[1750871544767,155.26680558,143.63,143.6,6.9637883]
[1750871544981,148.6,143.63,143.6,6.9637883]
[1750871547775,155.26680558,143.63,143.6,6.9637883]
[1750871549173,6.66680558,143.61,143.58,6.96475832]
[1750871549582,6.66680558,143.6,143.58,6.96475832]
[1750871549975,6.66680558,143.61,143.58,6.96475832]
[1750871550774,6.66680558,143.61,143.57,6.96524343]
[1750871550959,155.26680558,143.62,143.58,6.66680558]
[1750871551158,155.26680558,143.62,143.59,6.66680558]
[1750871551159,148.6,143.62,143.59,6.66680558]
[1750871552893,148.6,143.62,143.6,6.9637883]
[1750871553184,148.6,143.62,143.6,13.63059388]
[1750871553363,148.6,143.62,143.6,6.9637883]
[1750871559077,155.26680558,143.62,143.6,6.9637883]
[1750871559286,148.6,143.62,143.6,6.9637883]
[1750871560194,155.26680558,143.62,143.6,6.9637883]
[1750871561596,155.26680558,143.62,143.59,6.96427327]
[1750871562579,148.6,143.62,143.59,6.96427327]
[1750871564299,155.26680558,143.61,143.58,6.96457411]
[1750871564479,148.6,143.61,143.58,6.96457411]
[1750871565074,6.66680558,143.6,143.58,6.96457411]
[1750871565901,155.26680558,143.61,143.58,6.96457411]
[1750871566270,155.26680558,143.61,143.56,24.08106532]
[1750871566271,6.66680558,143.6,143.56,6.96572861]
[1750871566489,6.66680558,143.59,143.56,6.96572861]
[1750871566685,8.98440558,143.6,143.56,13.63253419]
[1750871566886,2.3176,143.6,143.56,13.63253419]
[1750871567974,148.6,143.61,143.57,6.66680558]
[1750871568178,148.6,143.61,143.58,6.66680558]
[1750871568381,148.6,143.61,143.59,6.96427327]
[1750871570001,155.26680558,143.61,143.59,6.96427327]
[1750871570176,148.6,143.61,143.59,6.96427327]
[1750871570597,148.6,143.61,143.58,6.96475832]
[1750871571100,155.26680558,143.61,143.58,6.96475832]
[1750871571687,148.6,143.61,143.58,6.96475832]
[1750871572071,148.6,143.61,143.58,13.6315639]
[1750871576877,148.6,143.61,143.58,6.66680558]
[1750871577883,148.6,143.61,143.59,6.96427327]
[1750871578389,148.6,143.61,143.59,13.63107885]
[1750871579702,148.6,143.61,143.6,6.66680558]
[1750871580880,148.6,143.64,143.6,6.66680558]
[1750871581097,148.6,143.64,143.61,6.66680558]
[1750871581805,148.6,143.64,143.62,6.96281854]
[1750871585712,148.6,143.64,143.63,6.66680558]
[1750871586709,150.0881113,143.67,143.63,6.66680558]
[1750871586907,150.0881113,143.67,143.64,6.66680558]
[1750871587808,150.0881113,143.67,143.65,6.96136442]
[1750871588221,1.4881113,143.67,143.66,6.66680558]
[1750871588394,1.4881113,143.67,143.66,13.02896715]
[1750871588591,1.4881113,143.67,143.66,12.88680558]
[1750871590011,1.4881113,143.67,143.66,19.84768543]
[1750871591907,1.4881113,143.67,143.66,19.989847]
[1750871592083,148.6,143.73,143.66,37.39204663]
[1750871592287,148.6,143.73,143.7,6.66680558]
[1750871593714,148.6,143.73,143.71,6.958458]
[1750871594298,148.6,143.73,143.69,13.62623212]
[1750871594496,155.26680558,143.73,143.69,13.62623212]
[1750871598103,148.6,143.73,143.69,13.62623212]
[1750871599130,155.26680558,143.73,143.69,13.62623212]
[1750871599506,2.2867,143.75,143.72,26.0]
[1750871599697,12.10110991,143.8,143.74,6.66680558]
[1750871599698,8.99480558,143.79,143.74,6.66680558]
[1750871599897,8.99480558,143.79,143.75,6.66680558]
[1750871600116,25.31645444,143.78,143.73,6.66680558]
[1750871600320,6.66680558,143.77,143.73,6.66680558]
[1750871600519,6.66680558,143.76,143.72,6.66680558]
[1750871600737,18.64964886,143.78,143.71,6.66680558]
[1750871601027,6.66680558,143.75,143.71,6.66680558]
[1750871601230,6.66680558,143.77,143.73,6.66680558]
[1750871602622,6.66680558,143.77,143.74,6.9570057]
[1750871604530,155.26680558,143.76,143.72,6.95797383]
[1750871604706,6.66680558,143.75,143.72,6.95797383]
[1750871604907,6.66680558,143.75,143.71,6.66680558]
[1750871605422,6.66680558,143.73,143.7,6.95894224]
[1750871606814,6.66680558,143.73,143.69,6.95942654]
[1750871612232,6.66680558,143.73,143.69,13.62623212]
[1750871613512,6.66680558,143.73,143.69,6.95942654]
[1750871613830,6.66680558,143.7,143.64,17.40378103]
[1750871614006,6.66680558,143.69,143.65,6.66680558]
[1750871615214,6.66680558,143.68,143.64,13.62865464]
[1750871615521,8.99960558,143.68,143.64,6.96184906]
[1750871616035,8.99960558,143.68,143.64,13.62865464]
[1750871618133,18.64964886,143.69,143.66,6.66680558]
[1750871620035,6.66680558,143.68,143.64,6.96184906]
[1750871620336,6.66680558,143.67,143.63,27.57124773]
[1750871620647,25.31645444,143.66,143.63,34.53341188]
[1750871622115,25.31645444,143.66,143.63,27.57124773]
[1750871622317,25.31645444,143.65,143.63,27.57124773]
[1750871622642,25.31645444,143.65,143.61,13.62998612]
[1750871622944,18.64964886,143.65,143.61,13.62998612]
[1750871624344,25.31645444,143.65,143.61,13.62998612]
[1750871625141,18.64964886,143.65,143.61,13.62998612]
[1750871625339,155.26680558,143.66,143.62,6.66680558]
[1750871625529,148.6,143.66,143.62,6.66680558]
[1750871625927,148.6,143.66,143.64,6.66680558]
[1750871626235,148.6,143.66,143.63,6.66680558]
[1750871627345,148.6,143.66,143.64,6.96184906]
[1750871630846,148.6,143.66,143.64,13.62865464]
[1750871631525,148.6,143.66,143.64,6.96184906]
[1750871632832,148.6,143.66,143.64,13.62865464]
[1750871636654,148.6,143.66,143.65,6.66680558]
[1750871636836,148.6,143.66,143.65,13.62817]
[1750871641350,28.1433,143.71,143.65,31.03158106]
[1750871641351,150.7433,143.71,143.65,31.03158106]
[1750871641546,150.7433,143.71,143.68,6.66680558]
[1750871641758,148.6,143.7,143.69,6.66680558]
[1750871641951,148.6,143.73,143.69,6.66680558]
[1750871642143,148.6,143.73,143.72,6.66680558]
[1750871643040,148.6,143.73,143.72,13.62477941]
[1750871643746,148.6,143.73,143.71,6.95823457]
[1750871644258,148.6,143.73,143.71,13.62504015]
[1750871646358,148.6,143.73,143.71,6.95823457]
[1750871646561,148.6,143.73,143.71,13.62504015]
[1750871650270,148.6,143.73,143.7,6.66680558]
[1750871651365,148.6,143.73,143.71,6.66680558]
[1750871652353,148.6,143.73,143.72,6.95797383]
[1750871653154,148.6,143.73,143.72,13.62477941]
[1750871653367,148.6,143.76,143.72,13.62477941]
[1750871653678,148.6,143.76,143.74,6.66680558]
[1750871654252,148.6,143.76,143.75,6.66680558]
[1750871655763,155.26680558,143.81,143.75,13.62332731]
[1750871655957,155.26680558,143.81,143.77,6.66680558]
[1750871656568,155.26680558,143.81,143.75,24.34782607]
[1750871656761,155.26680558,143.81,143.77,6.66680558]
[1750871657458,148.6,143.81,143.79,6.66680558]
[1750871657753,148.6,143.81,143.8,13.6209085]
[1750871658769,148.6,143.81,143.78,6.66680558]
[1750871659285,148.6,143.81,143.79,6.66680558]
[1750871659503,148.6,143.81,143.8,6.66680558]
[1750871659876,148.6,143.81,143.8,13.6209085]
[1750871660391,148.6,143.81,143.8,6.95410292]
[1750871660589,148.6,143.81,143.8,13.6209085]
[1750871661281,148.6,143.81,143.8,6.95410292]
[1750871662065,150.783,143.86,143.8,31.0061658]
[1750871662261,150.9629,143.91,143.84,6.66680558]
[1750871662570,6.66680558,143.89,143.84,6.66680558]
[1750871662964,6.66680558,143.89,143.85,6.66680558]
[1750871663376,18.64964886,143.89,143.85,6.66680558]
[1750871663553,25.31645444,143.89,143.85,6.66680558]
[1750871663957,6.66680558,143.89,143.86,6.95120255]
[1750871664158,148.6,143.9,143.86,13.61800813]
[1750871664357,155.26680558,143.9,143.86,13.61800813]
[1750871664780,6.66680558,143.89,143.86,6.95120255]
[1750871665088,155.26680558,143.9,143.86,13.61800813]
[1750871665598,148.6,143.9,143.86,13.61800813]
[1750871665761,155.26680558,143.9,143.86,13.61800813]
[1750871666389,155.26680558,143.9,143.83,17.38138622]
[1750871666390,177.24,143.9,143.83,6.66680558]
[1750871666603,6.66680558,143.88,143.84,6.66680558]
[1750871666821,18.64964886,143.89,143.84,6.66680558]
[1750871666991,18.64964886,143.89,143.86,6.66680558]
[1750871667186,148.6,143.9,143.86,6.66680558]
[1750871667607,148.6,143.9,143.87,6.66680558]
[1750871667783,148.6,143.9,143.83,2.3719]
[1750871668079,148.6,143.9,143.87,6.66680558]
[1750871668279,148.6,143.9,143.88,6.9502363]
[1750871669907,155.26680558,143.9,143.87,6.95050776]
[1750871671089,148.6,143.9,143.87,13.61731334]
[1750871671492,155.26680558,143.9,143.87,6.95050776]
[1750871671705,148.6,143.9,143.87,13.61731334]
[1750871672500,148.6,143.9,143.87,6.95050776]
[1750871672819,148.6,143.9,143.87,13.61731334]
[1750871673106,148.6,143.9,143.88,6.66680558]
[1750871674404,26.0,143.94,143.87,24.32730625]
[1750871674405,3.6603113,143.95,143.89,30.99094206]
[1750871674625,148.6,143.94,143.89,13.61655886]
[1750871674927,148.6,143.94,143.89,6.94975328]
[1750871674928,6.66680558,143.93,143.89,6.94975328]
[1750871675144,6.66680558,143.9,143.85,26.0]
[1750871675436,6.66680558,143.89,143.85,32.66680558]
[1750871675726,6.66680558,143.9,143.85,32.66680558]
[1750871675916,18.64964886,143.91,143.86,6.66680558]
[1750871676110,6.66680558,143.9,143.86,6.95120255]
[1750871676311,18.64964886,143.91,143.87,6.66680558]
[1750871676624,148.6,143.92,143.89,26.0]
[1750871677225,148.6,143.92,143.91,6.66680558]
[1750871678211,148.6,143.92,143.91,6.94878743]
[1750871678612,148.6,143.92,143.91,13.61559301]
[1750871678814,1.4881113,143.95,143.91,30.9875616]
[1750871679025,1.4881113,143.95,143.92,6.66680558]
[1750871679330,1.4881113,143.95,143.93,6.66680558]
[1750871679710,1.4881113,143.95,143.91,24.32075602]
[1750871679908,1.4881113,143.95,143.93,6.66680558]
[1750871680314,1.4881113,143.95,143.93,6.94782185]
[1750871681927,1.4881113,143.95,143.91,17.37196859]
[1750871682133,1.4881113,143.95,143.92,6.66680558]
[1750871682328,8.15491688,143.95,143.91,24.03877417]
[1750871682535,1.4881113,143.95,143.92,6.66680558]
[1750871682845,1.4881113,143.95,143.91,17.37196859]
[1750871683042,1.4881113,143.95,143.92,6.66680558]
[1750871683444,1.4881113,143.95,143.91,17.37196859]
[1750871683617,1.4881113,143.95,143.92,6.66680558]
[1750871684040,1.4881113,143.95,143.93,6.94782185]
[1750871684525,8.15491688,143.95,143.92,6.94810018]
[1750871684720,6.66680558,143.93,143.92,6.94810018]
[1750871685123,1.4881113,143.95,143.92,6.94810018]
[1750871685535,6.66680558,143.94,143.92,6.94810018]
[1750871686119,8.15491688,143.95,143.92,6.94810018]
[1750871686527,6.66680558,143.94,143.92,6.94810018]
[1750871686921,6.66680558,143.93,143.9,6.94905081]
[1750871687121,6.66680558,143.92,143.9,6.94905081]
[1750871687822,6.66680558,143.91,143.87,26.0]
[1750871688016,6.66680558,143.89,143.85,24.04587003]
[1750871688420,6.66680558,143.89,143.86,6.95120255]
[1750871689626,6.66680558,143.87,143.84,6.95216907]
[1750871690249,6.66680558,143.86,143.84,6.95216907]
[1750871690444,6.66680558,143.85,143.83,13.35243445]
[1750871690635,9.26302174,143.88,143.83,13.35243445]
[1750871690636,6.66680558,143.84,143.83,13.35243445]
[1750871690943,6.66680558,143.84,143.83,6.95243445]
[1750871691146,6.66680558,143.84,143.82,6.95292806]
[1750871692636,6.66680558,143.83,143.81,14.70681517]
[1750871692836,6.66680558,143.82,143.81,14.70681517]
[1750871693353,6.66680558,143.82,143.8,6.95390708]
[1750871693544,6.66680558,143.82,143.81,26.0]
[1750871694951,6.66680558,143.82,143.81,32.95361935]
[1750871695247,6.66680558,143.82,143.81,6.95361935]
[1750871695447,18.64964886,143.85,143.81,32.95361935]
[1750871695628,6.66680558,143.83,143.81,32.95361935]
[1750871696030,18.64964886,143.85,143.81,57.00447332]
[1750871696031,6.66680558,143.85,143.81,57.00447332]
[1750871698643,155.26680558,143.87,143.82,6.66680558]
[1750871700040,148.6,143.87,143.82,6.66680558]
[1750871700235,148.6,143.87,143.81,50.33766774]
[1750871700236,148.6,143.87,143.85,6.66680558]
[1750871700435,148.6,143.87,143.86,13.61800813]
[1750871701871,176.15355444,143.91,143.86,30.99601452]
[1750871702051,157.50390558,143.91,143.87,6.66680558]
[1750871702557,157.50390558,143.91,143.88,6.9502363]
[1750871703961,6.66680558,143.9,143.88,6.9502363]
[1750871704561,6.66680558,143.9,143.87,6.95071939]
[1750871706347,6.66680558,143.89,143.87,6.95071939]
[1750871706543,6.66680558,143.89,143.86,6.95120255]
[1750871709780,6.66680558,143.89,143.81,6.95361935]
[1750871709781,6.66680558,143.87,143.81,6.95361935]
[1750871709950,6.66680558,143.84,143.81,6.95361935]
[1750871713180,167.24964886,143.88,143.81,31.00447332]
[1750871713377,155.26680558,143.87,143.83,6.66680558]
[1750871713691,148.6,143.87,143.83,6.66680558]
[1750871713884,148.6,143.87,143.84,6.66680558]
[1750871714378,148.6,143.87,143.85,13.61849136]
[1750871716061,150.8371,143.91,143.85,24.33090023]
[1750871716266,157.50390558,143.91,143.88,6.9502363]
[1750871716574,6.66680558,143.89,143.86,6.95120255]
[1750871716764,6.66680558,143.88,143.86,6.95120255]
[1750871716959,6.66680558,143.87,143.84,6.95216907]
[1750871717165,6.66680558,143.85,143.84,6.95216907]
[1750871718274,6.95016513,143.89,143.82,24.33477865]
[1750871718470,6.66680558,143.85,143.82,24.33477865]
[1750871719552,6.66680558,143.84,143.82,6.95313586]
[1750871719755,6.66680558,143.83,143.79,28.60342101]
[1750871719969,6.66680558,143.81,143.79,28.60342101]
[1750871721073,18.64964886,143.84,143.8,6.95392113]
[1750871721277,6.66680558,143.81,143.8,6.95392113]
[1750871721658,6.66680558,143.81,143.79,35.55786047]
[1750871722182,6.66680558,143.8,143.79,28.60342101]
[1750871722360,9.96642923,143.8,143.79,28.60342101]
[1750871722774,9.96642923,143.8,143.77,6.9554057]
[1750871722969,9.96642923,143.79,143.77,6.9554057]
[1750871723265,9.96642923,143.79,143.76,6.95603784]
[1750871724381,9.96642923,143.78,143.76,6.95603784]
[1750871724774,9.96642923,143.77,143.74,6.9570057]
[1750871725391,9.96642923,143.77,143.74,24.34951996]
[1750871725568,9.96642923,143.78,143.74,34.31594919]
[1750871726492,2.1525,143.8,143.76,9.96642923]
[1750871727183,148.6,143.82,143.77,9.96642923]
[1750871727394,148.6,143.82,143.8,6.95410292]
[1750871728180,9.96642923,143.86,143.81,9.96642923]
[1750871728384,9.96642923,143.86,143.82,9.96642923]
[1750871728877,18.64964886,143.86,143.81,9.96642923]
[1750871729077,18.64964886,143.86,143.8,24.33936022]
[1750871729078,9.96642923,143.85,143.8,34.30578945]
[1750871731777,9.96642923,143.83,143.8,24.33936022]
[1750871732181,9.96642923,143.83,143.8,6.95410292]
[1750871732689,9.96642923,143.82,143.8,6.95410292]
[1750871733893,9.96642923,143.82,143.79,6.95458654]
[1750871734405,25.60106429,143.86,143.79,6.95458654]
[1750871734611,9.96642923,143.8,143.79,6.95458654]